Cogmind - Beta 14 @@@ ROGUE MODE // 2025.04.27 @ 10:29:03 Player: JB Result: Destroyed by G-47 Trooper with Particle Gun Performance ------------- Evolutions (3) 1500 Regions Visited (4) 800 Robots Destroyed (55) 275 Value Destroyed (1423) 1423 Prototype IDs (4) 80 Alien Tech Used (0) 0 Bonus (22) 22 TOTAL SCORE: 4100 Bonus ------- High Alert Combat Kills 22 Cogmind --------- Core Integrity 0/700 Matter 8/300 Energy 100/100 System Corruption 0% Temperature Cool (42) Movement Core (100) Ox1 Location -7/Factory Parts ------- > --- POWER (1) -------- (None) > --- PROPULSION (4) --- (None) > --- UTILITY (6) ------ Advanced Targeting Computer Hacking Suite Hacking Suite > --- WEAPON (2) ------- Mini Assault Cannon > --- INVENTORY (5) ---- Authchip [R/Combat] Authchip [Propulsion] Authchip [Processor] Authchip [Armor] Authchip [Weapon] Peak State ------------ > --- POWER ------------ Light Nuclear Core > --- PROPULSION ------- Aluminum Leg Improved Carbon-fiber Leg Improved Carbon-fiber Leg Improved Carbon-fiber Leg > --- UTILITY ---------- Improved Heat Sink Large Storage Unit Hacking Suite Hacking Suite Hacking Suite System Shield > --- WEAPON ----------- Mini Assault Cannon Mini Assault Cannon > --- INVENTORY -------- Light Nuclear Core Light Nuclear Core Light Treads Recoil Stabilizer Layered Light Armor Plating Layered Light Armor Plating Authchip [R/Combat] Authchip [Propulsion] Authchip [Storage] Authchip [Processor] Authchip [Armor] Authchip [Weapon] Advanced Beam Rifle Advanced Beam Rifle [Rating: 47] Favorites ----------- Power Ion Engine Engine Ion Engine Power Core Light Nuclear Core Propulsion Light Treads Treads Light Treads Leg Improved Carbon-fiber Leg Flight Unit Cesium-ion Thruster Utility Hacking Suite Device Heat Sink Storage Large Storage Unit Processor Advanced Targeting Computer Hackware Hacking Suite Protection Core Shielding Weapon Improved Medium Laser Energy Gun Improved Medium Laser Ballistic Gun Autogun Ballistic Cannon Mini Assault Cannon Slashing Weapon Chainsword Build | -11 -10 -9 -8 -7 ------- Run | Yrd Mat Mat Mat Fac Slots Evolved 6 | . . 2 2 2 Power . | . . . . . Propulsion 2 | . . 1 . 1 Utility 4 | . . 1 2 1 Weapon . | . . . . . Parts Attached 78 | 6 8 19 23 22 Power 8 | 1 . 3 1 3 Engine 3 | 1 . 2 . . Core 5 | . . 1 1 3 Reactor . | . . . . . Propulsion 24 | 2 . 9 4 9 Treads 12 | 2 . 9 . 1 Leg 6 | . . . 4 2 Wheel . | . . . . . Hover . | . . . . . Flight 6 | . . . . 6 Utility 20 | 1 3 2 8 6 Device 3 | . 1 . 2 . Storage 2 | 1 1 . . . Processor 2 | . . 1 . 1 Hackware 6 | . . . 3 3 Protection 7 | . 1 1 3 2 Artifact . | . . . . . Weapon 26 | 2 5 5 10 4 Energy Gun 17 | 2 4 2 9 . Energy Cannon . | . . . . . Ballistic Gun 3 | . . 2 1 . Ballistic Cannon 4 | . 1 . . 3 Launcher . | . . . . . Special Weapon . | . . . . . Impact Weapon . | . . . . . Slashing Weapon 2 | . . 1 . 1 Piercing Weapon . | . . . . . Special Melee Weapon . | . . . . . Unidentified Prototypes 4 | . 1 . 2 1 Parts Lost 16 | . . 2 . 14 Power 3 | . . 1 . 2 Propulsion 8 | . . . . 8 Utility 5 | . . 1 . 4 Weapon . | . . . . . Highest Loss Streak 8 | . . 2 . 8 To Critical Strikes . | . . . . . Average Slot Usage (%) 96 | . 98 99 94 92 Engine 5 | . 14 9 . . Core 4 | . . 1 9 7 Treads 17 | . 28 33 11 . Leg 9 | . . . 12 21 Flight 1 | . . . . 5 Device 4 | . . 8 9 1 Storage 9 | . 14 11 9 5 Processor 2 | . . 1 . 5 Hackware 11 | . . . 18 26 Protection 7 | . 12 11 7 1 Energy Gun 13 | . 24 17 14 2 Ballistic Gun 1 | . . 3 3 . Ballistic Cannon 3 | . 3 . . 7 Slashing Weapon 1 | . . . . 3 Peak Build Rating 47 | 6 15 19 42 47 Average Rating 26 | 4 9 17 34 42 On Entrance 15 | . 6 15 18 36 Naked Turns . | . . . . . Heaviest Build 39 | 12 32 33 39 34 Greatest Support 64 | 40 40 60 60 64 Greatest Overweight (x) . | . . . . . Average Overweight (x) . | . . . . . Largest Inventory Capacity 15 | 8 15 15 15 15 Average Capacity 13 | 6 13 15 15 13 Most Carried 15 | 4 15 15 15 15 Average Carried 12 | 1 11 14 13 12 Final Capacity 15 | 8 15 15 15 5 Final Carried 15 | 3 15 15 13 5 Class Distribution -------------------- 42% | Mutant 36% | Hacker-Mutant 14% | Scavenger-Mutant 7% | Hacker-Sprinter Dominant Class ---------------- Mutant | -10/Materials Mutant | -9/Materials Hacker-Mutant | -8/Materials Hacker-Mutant | -7/Factory Resources | -11 -10 -9 -8 -7 ----------- Run | Yrd Mat Mat Mat Fac Matter Collected 1202 | 63 149 446 274 270 Remotely . | . . . . . Salvage Created 2118 | . 147 1147 414 410 Parts 112 | . 12 49 27 24 Haulers Intercepted 8 | . 1 3 3 1 Recyclers Shooed 6 | . 2 2 1 1 Parts Field Recycled . | . . . . . Retrieved Matter . | . . . . . Parts Self-Destructed . | . . . . . Prevented . | . . . . . Kills | -11 -10 -9 -8 -7 ------- Run | Yrd Mat Mat Mat Fac Combat Hostiles Destroyed 38 | . 3 18 6 11 Melee 3 | . . . . 3 Guns 29 | . 2 18 6 3 Cannons 6 | . 1 . . 5 Classes Destroyed 12 | . 3 6 2 1 Worker 4 | . 1 2 . 1 Builder 1 | . . . 1 . Hauler 8 | . 1 3 3 1 Recycler 2 | . . 1 1 . Mechanic 1 | . . 1 . . Watcher 1 | . . 1 . . Swarmer 12 | . . 3 3 6 Grunt 16 | . 3 9 2 2 Brawler 2 | . . 1 . 1 Duelist 1 | . . . 1 . Sentry 6 | . . 5 . 1 Programmer 1 | . . . . 1 Best Kill Streak 6 | . 2 6 5 3 Combat Bots Only 5 | . 1 5 3 3 Max Kills in Single Turn 2 | . 1 1 2 2 Gunslinging 1 | . . . 1 1 Exploded . | . . . . . Melee 1 | . . . . 1 Uniques/NPCs Destroyed . | . . . . . Combat | -11 -10 -9 -8 -7 -------- Run | Yrd Mat Mat Mat Fac Hostile Shots Fired 446 | . 31 87 23 305 Missed 129 | . 5 24 9 91 Damage Taken 3567 | . 324 775 222 2246 Core 841 | . 51 64 21 705 Absorbed by Shields . | . . . . . Redirected to Shielding 23 | . 11 12 . . Core Remaining (%) 89 | 100 79 84 96 . Volleys Fired 182 | . 30 61 24 67 Largest 2 | . 2 2 2 2 Hottest 130 | . 130 112 126 122 Shots Fired 305 | . 53 122 47 83 Gun 223 | . 38 122 47 16 Cannon 82 | . 15 . . 67 Launcher . | . . . . . Special . | . . . . . Kinetic 113 | . 15 20 11 67 Thermal 192 | . 38 102 36 16 Explosive . | . . . . . Electromagnetic . | . . . . . Robot Hit Streak 14 | . 10 14 10 14 Robot Miss Streak 4 | . 3 4 1 4 Penetration Max . | . . . . . Secondary Targets 6 | . . 3 2 1 Max Gunslinging Chain 1 | . . 1 1 1 Shots Hit Robots 208 | . 37 82 35 54 Core Hits 81 | . 10 36 15 20 Critical Kills . | . . . . . Critical Parts Destroyed . | . . . . . Critical Strikes 16 | . . 11 1 4 Burn 14 | . . 11 1 2 Blast 2 | . . . . 2 Melee Attacks 24 | . . 4 . 20 Impact . | . . . . . Slashing 24 | . . 4 . 20 Piercing . | . . . . . Sneak Attacks 2 | . . 1 . 1 Combat Hostiles . | . . . . . Follow-up Attacks . | . . . . . Damage Inflicted 3966 | . 533 1370 618 1445 Guns 2553 | . 352 1323 618 260 Cannons 1148 | . 181 . . 967 Explosions . | . . . . . Melee 265 | . . 47 . 218 Ramming . | . . . . . Kinetic 1505 | . 181 236 121 967 Thermal 2196 | . 352 1087 497 260 Explosive . | . . . . . Electromagnetic . | . . . . . Impact . | . . . . . Slashing 265 | . . 47 . 218 Piercing . | . . . . . Highest Corruption 5 | . . . 5 . Average Corruption 5 | . . . 5 . Corruption Purged . | . . . . . Corruption Blocked . | . . . . . Effects 3 | . . . 3 . Matter Fused 1 | . . . 1 . Energy Discharges 1 | . . . 1 . Data Loss (minor) 1 | . . . 1 . Overload Shots . | . . . . . Overflow Damage 43 | . . 27 . 16 Projectiles 16 | . . . . 16 Explosions . | . . . . . Melee 27 | . . 27 . . Knockbacks 11 | . 2 . . 9 Impact . | . . . . . Kinetic 11 | . 2 . . 9 Secondary . | . . . . . Self-Inflicted Damage . | . . . . . Shots . | . . . . . Rammed 1 | . 1 . . . Targets Rammed 1 | . 1 . . . Kicked . | . . . . . Crushed . | . . . . . Highest Temperature 349 | . 160 108 108 349 Average Temperature 72 | . 66 37 32 121 Received Heat Transfer 1371 | . 204 357 45 765 Effects 1 | . . . . 1 Energy Bleed 1 | . . . . 1 Siege Activations . | . . . . . Robots Corrupted . | . . . . . Combat Hostiles . | . . . . . Parts Fried . | . . . . . Impact Corruptions . | . . . . . Robots Melted . | . . . . . Combat Hostiles . | . . . . . Parts Melted 12 | . 1 7 3 1 Heat Transferred 5667 | . 783 3182 1073 629 Parts Sabotaged . | . . . . . Parts Stolen . | . . . . . Parts Stripped . | . . . . . Power Chain Reactions . | . . . . . Alert | -11 -10 -9 -8 -7 ------- Run | Yrd Mat Mat Mat Fac Peak Influence 448 | . 87 448 385 295 Initial 189 | . . 16 189 175 Average 163 | . 27 186 280 198 Maximum Alert Level 2 | . . 2 1 1 Low Security (%) 60 | 100 100 59 27 44 Level 1 35 | . . 26 72 55 Level 2 3 | . . 13 . . Level 3 . | . . . . . Level 4 . | . . . . . Level 5 . | . . . . . High Security . | . . . . . Max Security . | . . . . . Squads Dispatched 9 | . 1 1 . 7 Investigation 2 | . 1 . . 1 Extermination 1 | . . . . 1 Reinforcement 3 | . . 1 . 2 Assault . | . . . . . Garrison 3 | . . . . 3 Intercept . | . . . . . Searches Triggered . | . . . . . Construction Impeded . | . . . . . Haulers Reinforced . | . . . . . Active Scanning Responses . | . . . . . Cargo Convoy Interrupts . | . . . . . Stealth | -11 -10 -9 -8 -7 --------- Run | Yrd Mat Mat Mat Fac Distress Signals 1 | . . . . 1 Communications Jammed . | . . . . . Distress Signals . | . . . . . Times Spotted 67 | . 8 24 7 28 Peak Tracking Total 9 | . 2 5 3 9 Tactical Retreats 6 | . . 1 . 5 Traps | -11 -10 -9 -8 -7 ------- Run | Yrd Mat Mat Mat Fac Traps Triggered 5 | . . . 2 3 Indirectly . | . . . . . Trap Hack Attempts . | . . . . . Triggered . | . . . . . Disarmed . | . . . . . Reprogrammed . | . . . . . Reused . | . . . . . Traps Extracted . | . . . . . Installed . | . . . . . Triggered . | . . . . . Machines | -11 -10 -9 -8 -7 ---------- Run | Yrd Mat Mat Mat Fac Machines Disabled 3 | . . 3 . . Max in Single Turn 1 | . . 1 . . Machines Repaired . | . . . . . Machines Dismantled . | . . . . . Machines Sabotaged . | . . . . . Overloaded Fab Kills . | . . . . . Hacking | -11 -10 -9 -8 -7 --------- Run | Yrd Mat Mat Mat Fac Machines Accessed 11 | . 2 2 2 5 Terminals 7 | . 1 2 2 2 Fabricators . | . . . . . Repair Stations . | . . . . . Recycling Units 2 | . 1 . . 1 Scanalyzers 1 | . . . . 1 Garrison Access 1 | . . . . 1 Total Hacks 36 | . 7 4 6 19 Successful 21 | . 4 2 4 11 Failed 14 | . 3 2 1 8 Catastrophic 4 | . 1 . . 3 Database Lockouts 1 | . . . 1 . Manual 18 | . 4 4 5 5 Terminals 19 | . 4 4 6 5 Fabricators . | . . . . . Repair Stations . | . . . . . Recycling Units 5 | . 3 . . 2 Scanalyzers 9 | . . . . 9 Garrison Access 3 | . . . . 3 Terminal Hacks 5 | . . 1 4 . Part Schematic 3 | . . . 3 . Alert Level 1 | . . 1 . . Zone Layout 1 | . . . 1 . Fabricator Hacks . | . . . . . Repair Station Hacks . | . . . . . Recycling Unit Hacks 5 | . 3 . . 2 Report Inventory 2 | . 1 . . 1 Retrieve Matter 1 | . . . . 1 Retrieve Components 2 | . 2 . . . Scanalyzer 9 | . . . . 9 Insert Component 5 | . . . . 5 Analyze 4 | . . . . 4 Garrison Access Hacks . | . . . . . Unauthorized Hacks 2 | . 1 1 . . Terminals 2 | . 1 1 . . Botnet 2 | . 1 1 . . Fabricators . | . . . . . Repair Stations . | . . . . . Recycling Units . | . . . . . Scanalyzers . | . . . . . Garrison Access . | . . . . . Data Cores Recovered . | . . . . . Used . | . . . . . Hacking Detections 8 | . 2 1 2 3 Full Trace Events 3 | . 1 . 1 1 Feedback Events . | . . . . . Feedback Blocked . | . . . . . Robot Schematics Acquired . | . . . . . Robots Built . | . . . . . Authchips . | . . . . . Time . | . . . . . Total Robot Build Rating . | . . . . . Part Schematics Acquired 6 | . . . 3 3 Parts Built . | . . . . . Authchips . | . . . . . Time . | . . . . . Total Part Build Rating . | . . . . . Parts Repaired . | . . . . . Time . | . . . . . Parts Recycled . | . . . . . Recycled Matter . | . . . . . Retrieved Matter . | . . . . . Retrieved Components 8 | . 8 . . . Parts Scanalyzed 3 | . . . . 3 Part Schematics Acquired 3 | . . . . 3 Parts Damaged . | . . . . . Bothacking | -11 -10 -9 -8 -7 ------------ Run | Yrd Mat Mat Mat Fac Used RIF Installer . | . . . . . Robots Hacked . | . . . . . Non-combat . | . . . . . Combat . | . . . . . Robot Hacks Applied . | . . . . . Relay Couplers Released . | . . . . . Fabnet Peak Effective % . | . . . . . Robots Rewired . | . . . . . Allies Hacked . | . . . . . Hacks Repelled . | . . . . . Allies | -11 -10 -9 -8 -7 -------- Run | Yrd Mat Mat Mat Fac Total Allies . | . . . . . Largest Group . | . . . . . Highest-Rated Group . | . . . . . Highest-Rated Ally . | . . . . . Total Orders . | . . . . . Ally Attacks . | . . . . . Total Damage . | . . . . . Kills . | . . . . . Allies Corrupted . | . . . . . Allies Melted . | . . . . . Intel | -11 -10 -9 -8 -7 ------- Run | Yrd Mat Mat Mat Fac Robot Analysis Total . | . . . . . Derelict Logs Recovered . | . . . . . Drone Launches . | . . . . . Drone Recoveries . | . . . . . Exploration | -11 -10 -9 -8 -7 ------------- Run | Yrd Mat Mat Mat Fac Turns Passed 2793 | 59 630 783 390 931 Spaces Moved 1663 | 36 316 337 206 768 Core 9 | 9 . . . . Treads 737 | 27 316 337 57 . Legs 609 | . . . 149 460 Wheels . | . . . . . Hover . | . . . . . Flight 308 | . . . . 308 Fastest Speed 26 | 50 160 160 120 26 Average Speed 120 | 132 160 160 131 82 Slowest Speed 160 | 160 160 160 160 120 Overloaded Moves . | . . . . . Propulsion Burnouts . | . . . . . Robots Hopped 2 | . . . . 2 Cave-ins Triggered . | . . . . . Exploration Rate (%) 25 | 4 56 36 15 17 Regions Visited 4 Branch Regions . Pre-discovered Areas . | . . . . . Known Exits Taken . | . . . . . Unknown Exits Taken 4 | 1 1 1 1 . Scrap Searched . | . . . . . Spaces Dug 18 | . . 2 . 16 Terrain Destroyed 22 | . . 2 . 20 Melee 12 | . . 2 . 10 Projectile 10 | . . . . 10 AOE . | . . . . . Terrain Rammed . | . . . . . Walls Destroyed . | . . . . . Machines Disabled . | . . . . . Actions | -11 -10 -9 -8 -7 --------- Run | Yrd Mat Mat Mat Fac Total 2127 | 45 389 457 283 953 Wait 56 | . 6 8 7 35 Move 1655 | 35 315 336 205 764 Hop 2 | . . . . 2 Pick Up 48 | 4 17 12 7 8 Fast Attach 26 | 5 7 . 9 5 Attach 25 | 1 . 4 9 11 Detach 7 | . . . 3 4 Swap 27 | . 1 15 5 6 Drop 59 | . 12 17 14 16 Fire 182 | . 30 61 24 67 Melee 24 | . . 4 . 20 Ram . | . . . . . Kick . | . . . . . Crush 1 | . 1 . . . Escape Stasis 15 | . . . . 15 Rewire . | . . . . . Trap . | . . . . . Miscellaneous . | . . . . . Route ------- -11/Scrapyard -10/Materials (discovered 3 exits: *Mat x2 / [*Min]) -9/Materials (discovered 2 exits: *Mat / [*Min]) -8/Materials -7/Factory (discovered 1 exit: [*Low]) History --------- Turn | Location | Event 7 | -11/Scrapyard | Discovered new exit (range 15) 60 | -11/Scrapyard | Entered Materials 283 | -10/Materials | Discovered new exit (range 7) 302 | -10/Materials | Build established: Mutant 430 | -10/Materials | Discovered new exit (range 10) 676 | -10/Materials | Discovered new exit (range 10) 690 | -10/Materials | Entered another Materials area 690 | -9/Materials | Evolved 2 slots: Propulsion x1, Utility x1 1168 | -9/Materials | Discovered new exit (range 8) 1324 | -9/Materials | Discovered new exit (range 16) 1473 | -9/Materials | Entered another Materials area 1473 | -8/Materials | Evolved 2 slots: Utility x2 1477 | -8/Materials | Build established: Scavenger-Mutant 1803 | -8/Materials | Discovered new exit (range 6) 1861 | -8/Materials | Central database locked down 1863 | -8/Materials | Entered Factory 1863 | -7/Factory | Evolved 2 slots: Propulsion x1, Utility x1 1904 | -7/Factory | Build established: Hacker-Mutant 2227 | -7/Factory | Discovered new exit (range 12) 2602 | -7/Factory | Core integrity fell below 50% 2632 | -7/Factory | Lost 8 parts (1p4n3u) 2787 | -7/Factory | Core integrity fell below 20% 2794 | -7/Factory | Destroyed by G-47 Trooper with Particle Gun Last Messages --------------- 02698_ Field strength at 52. 02704_ Field strength at 46. 02705_ Field strength at 40. 02706_ Field strength at 34. 02707_ Field strength at 28. 02708_ Field strength at 22. 02709_ Field strength at 16. 02710_ Field strength at 10. 02711_ Field strength at 4. 02712_ Stasis field depleted. 02745_ W-25 Informer sends out distress signal. 02748_ Cesium-ion Thruster destroyed. 02753_ Dropped Lyr. Light Armor Plating. 02774_ Y-54 Guardian Gatling Laser blasted off. 02776_ Y-54 Guardian destroyed. 02778_ S-27 Virus destroyed. 02780_ Acquired 6 matter. 02784_ Cesium-ion Thruster destroyed. 02792_ Destroyed Lgt. Nuclear Core. 02793_ Mic. Nuclear Core destroyed. Map ----- +----------------------------------------------------+ | | | | | | | | | | | | | ?????????????????????????????????????????????##### | | ???????????????????????????????????????? ? | | ??????????????????????????????????????# """""""" | | ??????????????????????????????????????# | | ??????????????????????????????????????# """""""" | | ??????????????????????????????????????# | | ??????????????????????????????????????# """""""" | | ??????????????????????????????????????# | | ??????????????????????????????????????# | | ????????????????????????????????##?????#########+# | | ????????????????????????????????# ############ | | ????????????????????????????????# !! # | | ????????????????????????????????# !! *# | | ????????????????????????????????# !! # | | ????????????????????????????????# """ + | | ????????????????????????????????# """ # | | ????????????????????????????????# """ # | | ???????????????????????##+##????# ! # | | ????????????# ###### [ ###### """ "" # | | ????????????+ *@ Y """ """ # | | ????????????# ### ##%% ###### """ R" # | | ???????????????????????#;%##????# """ # | | ???????????????????????##%#?????# # | | ????????????????????????#g################+### % | | ????????????????????????#%g | | ????????????????????????#t % | | ????????????????????????+ | | ????????????????????????# | | ????????????????????????# | | ????????????????????????# ############# | | ????????????????????????# # """ | | ????????????????????????# # "Y" | | ????????????????????????# + """" " " | | ????????????????????????# # """" | | ????????????????????????# # """" ] | | ????????????????????????# # """" | | ????????????????????????# ######## | | ????????????????????????# ???????# """" """" | | ????????????????????? ????????# """" """" | | ????????????????????? ?????????# """" """" | | ???????????????????? ?????????# """" """" | | ????????????????????? ????????? | | ?????????????????????? ?????????############ | | ????????????????????????# ?????###???????????# | +----------------------------------------------------+ Best States ------------- Heat Dissipation 48 Energy Generation 15 Energy Capacity 250 Matter Stores 300 Matter Capacity 300 Sight Range 16 Terrain Scan Density 10 Armor Coverage 300 Core Shielding 20 Evasion (%) 63 Targeting Accuracy 8 Recoil Reduction 7 Offensive Hacking 40 Defensive Hacking 10 Authchip Count 7 Item Schematics ----------------- Hacking Suite | -8/Materials | Hacked Carbon-fiber Leg | -8/Materials | Hacked Adv. Targeting Computer | -8/Materials | Hacked Lgt. Nuclear Core | -7/Factory | Scanalyzed Recoil Stabilizer | -7/Factory | Scanalyzed Lyr. Light Armor Plating | -7/Factory | Scanalyzed Robot Schematics ------------------ None Fabricated ------------ Nothing Alien Tech Used ----------------- None Achievements -------------- None Challenges ------------ None Game ------ Seed AerolevDynamicBeamcaster Manual? 0 Play Time 00:31:24 Cumulative 63.7 hours Start 2025.04.27 @ 09:32:48 End 2025.04.27 @ 10:29:03 Sessions 1 Manual Loads 0 Difficulty Rogue Special Mode None Game No. 136 Rogue 88 Adventurer 48 Explorer 0 Win Type - Total 0 Types 0/0/0/0/0/0/0/0/0 Lore% 20 Gallery% 42 Achievement% 37 Wizard Run 0 Options --------- Layout 1 ASCII 0 Keyboard 0 Movement Mouse Keybinds 0 Fullscreen 1 Font 32/SmallcapsGlow Map View 50x35 Zoom Use 0% Tactical HUD 1 Map Filters NONE Filters NONE Steam 1 RUN: e43770af-88b6-42b5-9e22-c66f375f7b06